bitfinex-derivatives/quotes_BTCF0:USTF0_20241122
["timestamp","ask_amount","ask_price","bid_price","bid_amount"]
[1732298927746,0.38093583,99143.0,99133.0,0.050389]
[1732298927950,0.38093583,99143.0,99135.0,0.050388]
[1732298930740,0.38093583,99143.0,99131.0,0.5339]
[1732298930943,0.38093583,99143.0,99131.0,0.5331]
[1732298931137,0.38093583,99143.0,99133.0,0.050389]
[1732298931945,0.43131983,99143.0,99131.0,0.53382]
[1732298932139,0.43131983,99143.0,99131.0,0.58349]
[1732298932548,0.38093583,99143.0,99131.0,0.5331]
[1732298932750,0.050389,99132.0,99131.0,0.24834776]
[1732298933044,0.05039,99131.0,99130.0,0.03027851]
[1732298933251,0.050391,99129.0,99115.0,0.050398]
[1732298933441,0.3608,99125.0,99115.0,0.050398]
[1732298933643,0.3608,99125.0,99116.0,0.15094909]
[1732298934050,0.3608,99125.0,99108.0,1.21197289]
[1732298934243,0.3608,99125.0,99110.0,0.09770697]
[1732298934450,0.3608,99125.0,99115.0,0.050398]
[1732298934646,0.3608,99125.0,99108.0,1.21201289]
[1732298934851,0.050394,99123.0,99113.0,0.050399]
[1732298935048,0.3608,99125.0,99115.0,0.050398]
[1732298935353,0.3608,99125.0,99108.0,1.21193289]
[1732298935555,0.3608,99125.0,99115.0,0.050398]
[1732298936350,0.3608,99125.0,99108.0,1.21193289]
[1732298936547,0.411193,99125.0,99108.0,1.21193289]
[1732298936749,0.3608,99125.0,99108.0,1.21121289]
[1732298937048,0.3608,99125.0,99118.0,0.050396]
[1732298937252,0.05039,99131.0,99118.0,0.539999]
[1732298937754,0.3608,99125.0,99120.0,0.050395]
[1732298937940,0.3608,99125.0,99118.0,0.539999]
[1732298938145,0.02013217,99121.0,99118.0,0.539999]
[1732298938844,0.02013217,99121.0,99120.0,0.050395]
[1732298939251,0.02013217,99121.0,99118.0,0.539999]
[1732298939460,0.02013217,99121.0,99119.0,0.050396]
[1732298940255,0.02013217,99121.0,99120.0,0.050395]
[1732298941245,0.02013217,99121.0,99120.0,0.08025534]
[1732298941449,0.3508,99125.0,99124.0,0.025173]
[1732298941653,0.02013217,99134.0,99123.0,0.3608]
[1732298941850,0.02013217,99134.0,99124.0,0.16250697]
[1732298942749,0.02013217,99134.0,99127.0,0.050392]
[1732298943455,0.00038,99133.0,99128.0,0.0308]
[1732298943651,0.00038,99133.0,99130.0,0.05039]
[1732298943852,0.00038,99133.0,99131.0,0.05039]
[1732298944046,0.00038,99133.0,99128.0,0.1708]
[1732298944256,0.00038,99133.0,99128.0,0.221191]
[1732298944559,0.00038,99133.0,99129.0,0.050391]
[1732298945055,0.00038,99133.0,99129.0,0.05039]
[1732298945251,0.00038,99133.0,99128.0,0.1708]
[1732298945443,0.00038,99133.0,99132.0,0.050389]
[1732298945851,0.00038,99133.0,99128.0,0.1708]
[1732298946254,0.00038,99133.0,99129.0,0.050391]
[1732298946455,0.00038,99133.0,99130.0,0.05039]
[1732298946659,0.00038,99133.0,99128.0,0.1708]
[1732298946952,0.050391,99129.0,99120.0,0.02986034]
[1732298947258,0.411193,99125.0,99120.0,0.03]
[1732298947442,0.3608,99125.0,99120.0,0.03]
[1732298947644,0.050394,99124.0,99120.0,0.03]
[1732298948047,0.3608,99125.0,99120.0,0.03]
[1732298948247,0.050395,99122.0,99106.0,0.02946603]
[1732298948557,0.050403,99105.0,99104.0,0.10078968]
[1732298948857,0.464,99108.0,99093.0,0.10078968]
[1732298949058,0.050404,99104.0,99093.0,0.10078968]
[1732298949247,0.050404,99104.0,99102.0,0.0298997]
[1732298950260,0.064,99107.0,99102.0,0.0298997]
[1732298950646,0.050404,99104.0,99102.0,0.0298997]
[1732298952055,0.050404,99104.0,99084.0,0.3608]
[1732298952269,0.050404,99104.0,99078.0,0.444517]
[1732298952270,0.050411,99089.0,99078.0,0.3608]
[1732298952451,0.050411,99089.0,99079.0,6.162e-05]
[1732298952650,0.050411,99090.0,99079.0,6.162e-05]
[1732298952853,0.3608,99080.0,99079.0,6.162e-05]
[1732298953363,0.411216,99080.0,99079.0,6.162e-05]
[1732298957055,0.714016,99080.0,99054.0,0.050429]
[1732298957259,0.3608,99059.0,99056.0,0.050428]
[1732298957561,0.3608,99059.0,99054.0,0.21314846]
[1732298957868,0.3608,99059.0,99054.0,0.112729]
[1732298958059,0.3608,99059.0,99054.0,0.0623]
[1732298958263,0.3608,99059.0,99054.0,0.112729]
[1732298958564,0.00266,99058.0,99054.0,0.0623]
[1732298958862,0.00266,99058.0,99055.0,0.050428]
[1732298959158,0.00266,99058.0,99054.0,0.0623]
[1732298959567,0.00266,99058.0,99054.0,0.112729]
[1732298959965,0.00266,99058.0,99054.0,0.0623]
[1732298961953,0.00266,99058.0,99053.0,0.0297943]
[1732298961954,0.00266,99058.0,99052.0,0.00151372]
[1732298962155,0.05043,99053.0,99052.0,0.00151372]
[1732298962361,0.3608,99055.0,99031.0,0.0631]
[1732298962362,0.09770697,99050.0,99031.0,0.0631]
[1732298962564,0.3608,99035.0,99031.0,0.1131]
[1732298962771,0.3608,99035.0,99031.0,0.06297735]
[1732298962772,0.05044,99032.0,99031.0,0.06297735]
[1732298962964,0.3608,99035.0,99031.0,0.06297735]
[1732298963162,0.05044,99033.0,99031.0,0.06297735]
[1732298963662,0.3608,99035.0,99031.0,0.06297735]
[1732298963963,0.05044,99034.0,99031.0,0.06297735]
[1732298964168,0.05044,99032.0,99031.0,0.06297735]
[1732298964362,0.050439,99034.0,99031.0,0.06297735]
[1732298964668,0.3608,99035.0,99031.0,0.06297735]
[1732298965070,0.050439,99034.0,99031.0,0.06297735]
[1732298965375,0.05044,99034.0,99031.0,0.49297735]
[1732298965960,0.3608,99035.0,99031.0,0.49297735]
[1732298966880,0.3608,99035.0,99032.0,0.05044]
[1732298967070,0.00807,99034.0,99031.0,0.49297735]
[1732298967371,0.00807,99034.0,99031.0,0.49369735]
[1732298968265,0.00807,99034.0,99031.0,0.49297735]
[1732298969067,0.00807,99034.0,99033.0,0.05044]
[1732298969263,0.3608,99045.0,99032.0,0.45478261]
[1732298969467,0.3608,99036.0,99035.0,0.09770697]
[1732298969768,0.3608,99045.0,99044.0,0.050434]
[1732298969971,0.38134426,99045.0,99044.0,0.920434]
[1732298970172,0.38134426,99045.0,99044.0,0.87]
[1732298970570,0.38134426,99045.0,99044.0,0.920434]
[1732298971772,0.38134426,99045.0,99044.0,1.37576509]
[1732298972568,0.02015426,99061.0,99057.0,0.050428]
[1732298972773,0.33246918,99066.0,99060.0,0.050426]
[1732298972968,0.33246918,99066.0,99065.0,0.050423]
[1732298973172,0.31246918,99066.0,99065.0,0.050423]
[1732298974774,0.0201536,99066.0,99065.0,0.50424871]
[1732298974975,0.00584,99067.0,99066.0,0.050423]
[1732298975174,0.00584,99067.0,99066.0,0.353263]
[1732298975380,0.00584,99067.0,99066.0,0.50424871]
[1732298976274,0.00584,99067.0,99066.0,0.15098571]
[1732298976577,0.00584,99067.0,99065.0,0.02960886]
[1732298976778,0.00584,99067.0,99057.0,0.93]
[1732298977283,0.00584,99067.0,99058.0,0.050427]
[1732298977676,0.00584,99067.0,99059.0,0.050426]
[1732298977978,0.00584,99067.0,99057.0,0.9308]
[1732298978180,0.00584,99067.0,99061.0,0.050425]
[1732298978675,0.00584,99067.0,99058.0,0.050427]
[1732298979579,0.00584,99067.0,99057.0,0.96052284]
[1732298979775,0.00584,99067.0,99061.0,0.050425]
[1732298980275,0.00584,99067.0,99057.0,0.96052284]
[1732298980580,0.00584,99067.0,99061.0,0.050425]
[1732298980881,0.00584,99067.0,99057.0,0.96060284]
[1732298981081,0.00584,99067.0,99062.0,0.050425]
[1732298981269,0.00584,99067.0,99058.0,0.050427]
[1732298981470,0.00584,99067.0,99062.0,0.050425]
[1732298981779,0.00584,99067.0,99060.0,0.050426]
[1732298981984,0.00584,99067.0,99061.0,0.050425]
[1732298982183,0.02014712,99063.0,99061.0,0.050425]
[1732298982680,0.02014712,99063.0,99057.0,0.96052284]
[1732298982884,0.02014712,99063.0,99062.0,0.050425]
[1732298983477,0.02014712,99063.0,99057.0,0.96052284]
[1732298983674,0.411227,99058.0,99057.0,0.02980284]
[1732298983875,0.411227,99058.0,99042.0,0.3608]
[1732298984077,0.3608,99049.0,99045.0,0.43151427]
[1732298984279,0.3608,99049.0,99046.0,0.15167985]
[1732298985391,0.3608,99049.0,99048.0,0.050432]
[1732298985679,0.3608,99049.0,99046.0,0.2]
[1732298985882,0.3608,99049.0,99046.0,0.250433]
[1732298986278,0.3608,99049.0,99046.0,0.2]
[1732298986680,0.3608,99049.0,99048.0,0.050432]
[1732298986874,0.3608,99049.0,99046.0,0.2]
[1732298988379,0.3608,99049.0,99045.0,0.03084683]
[1732298988582,0.3809489,99049.0,99045.0,0.03084683]
[1732298989287,0.3809489,99049.0,99045.0,0.10084683]
[1732298990985,0.4313809,99049.0,99045.0,0.10084683]
[1732298991181,0.3809489,99049.0,99045.0,0.10084683]
[1732298991888,0.3809489,99049.0,99048.0,0.050432]
[1732298993588,0.3809489,99049.0,99045.0,0.09933256]
[1732298993888,0.3809489,99049.0,99045.0,0.14976556]
[1732298994490,0.3809489,99049.0,99045.0,0.09933256]
[1732298996687,0.3809489,99049.0,99048.0,0.050432]
[1732298998284,0.3809489,99049.0,99045.0,0.09933256]
[1732298998486,0.3809489,99049.0,99046.0,0.050433]
[1732298998693,0.3809489,99049.0,99045.0,0.09933256]
[1732298998893,0.3809489,99049.0,99047.0,0.050432]
[1732298999288,0.3809489,99049.0,99045.0,0.07]
[1732299000787,0.050433,99047.0,99045.0,0.07]
[1732299000986,0.3809489,99049.0,99045.0,0.07]
[1732299001397,0.00586,99048.0,99045.0,0.07]
[1732299002493,0.050433,99046.0,99045.0,0.07]
[1732299003891,0.00586,99048.0,99028.0,0.3608]
[1732299004197,0.3608,99038.0,99028.0,0.9108]
[1732299004588,0.050439,99035.0,99028.0,0.9108]
[1732299004790,0.3608,99038.0,99028.0,0.94027951]
[1732299004996,0.050438,99037.0,99028.0,0.94027951]
[1732299005194,0.050438,99037.0,99028.0,1.03798648]
[1732299005390,0.3608,99038.0,99028.0,1.03798648]
[1732299005994,0.411242,99029.0,99028.0,0.67718648]
[1732299006194,0.507042,99029.0,99028.0,0.57947951]
[1732299006387,0.507042,99029.0,99000.0,0.1]
[1732299006388,0.507042,99029.0,99005.0,0.0328]
[1732299006593,0.3608,99011.0,99010.0,0.09770697]
[1732299006797,0.3608,99011.0,99005.0,0.4328]
[1732299006798,0.3608,99011.0,99005.0,0.58359114]
[1732299007098,0.3608,99011.0,99005.0,0.4328]
[1732299007300,0.050452,99010.0,99005.0,0.4328]
[1732299007488,0.3608,99011.0,99006.0,0.15166693]
[1732299007693,0.050452,99009.0,99006.0,0.15166693]
[1732299007893,0.00586,99008.0,99006.0,0.15166693]
[1732299008094,0.056313,99008.0,99006.0,0.15166693]
[1732299008290,0.056313,99008.0,99005.0,0.4328]
[1732299009993,0.050453,99007.0,99005.0,0.4328]
[1732299010900,0.00586,99008.0,99005.0,0.4]
[1732299010901,0.050454,99006.0,99005.0,0.4]
[1732299011095,0.050456,99001.0,99000.0,0.1]
[1732299012299,0.050456,99001.0,98990.0,0.0015149]
[1732299012300,0.050457,99000.0,98990.0,0.0015149]
[1732299012491,0.100912,99001.0,98990.0,0.03122379]
[1732299012492,0.3608,98991.0,98990.0,0.03122379]
[1732299012692,0.411261,98991.0,98990.0,0.0015149]
[1732299013795,0.507061,98991.0,98990.0,0.0015149]
[1732299016102,0.810101,98991.0,98990.0,0.0015149]
[1732299016312,0.050469,98976.0,98972.0,5.608e-05]
[1732299017004,0.3608,98973.0,98972.0,5.608e-05]
[1732299019395,0.41127,98973.0,98972.0,5.608e-05]
[1732299021097,0.41127,98973.0,98972.0,0.02005608]
[1732299021304,0.41127,98973.0,98972.0,5.608e-05]
[1732299022305,0.41127,98973.0,98972.0,0.09005608]
[1732299023917,0.41127,98973.0,98972.0,5.608e-05]
[1732299026204,0.3608,98973.0,98972.0,0.17005608]
[1732299028711,0.38096922,98973.0,98972.0,0.17005608]
[1732299029708,0.38683922,98973.0,98972.0,0.17005608]
[1732299030917,0.38683922,98973.0,98972.0,0.22052708]
[1732299031219,0.02603922,98973.0,98972.0,0.67570128]
[1732299031512,0.02603922,98973.0,98972.0,0.46843736]
[1732299031513,0.38683922,98973.0,98972.0,0.46843736]
[1732299031710,0.02603922,98973.0,98972.0,0.46843736]
[1732299032213,0.02603922,98973.0,98972.0,0.41796636]
[1732299032413,0.02603922,98973.0,98972.0,0.46843736]
[1732299033518,0.38683922,98973.0,98972.0,0.46843736]
[1732299033720,0.38683922,98973.0,98972.0,0.41796636]
[1732299034120,0.38683922,98973.0,98972.0,0.46843736]
[1732299035222,0.38683922,98973.0,98972.0,0.37263736]
[1732299035718,0.38683922,98973.0,98972.0,0.32216636]
[1732299035919,0.38683922,98973.0,98972.0,0.37263736]
[1732299036625,0.38683922,98973.0,98972.0,0.32216636]
[1732299036825,0.38683922,98973.0,98972.0,0.37263736]
[1732299037523,0.38683922,98973.0,98972.0,0.32216636]
[1732299038921,0.38683922,98973.0,98972.0,0.17005608]
[1732299039117,0.43730922,98973.0,98972.0,0.17005608]
[1732299040015,0.43730922,98973.0,98955.0,0.050479]
[1732299040016,0.43730922,98973.0,98944.0,0.0958]
[1732299040330,0.3608,98958.0,98956.0,0.15127393]
[1732299040731,0.3608,98958.0,98954.0,0.22205771]
[1732299042423,0.3608,98958.0,98955.0,0.050479]
[1732299043129,0.3608,98958.0,98957.0,0.050478]
[1732299043332,0.3608,98958.0,98955.0,0.050479]
[1732299043521,0.3608,98958.0,98954.0,0.22205771]
[1732299043522,0.3608,98958.0,98957.0,0.050478]
[1732299044024,0.38743923,98973.0,98957.0,0.55064336]
[1732299044230,0.38743923,98973.0,98968.0,0.050473]
[1732299044231,0.38683922,98973.0,98968.0,0.050473]
[1732299044533,0.38683922,98973.0,98969.0,0.082172]
[1732299045026,0.38683922,98973.0,98970.0,0.0304]
[1732299045428,0.02603922,98973.0,98970.0,0.0304]
[1732299045732,0.02603922,98973.0,98972.0,0.050471]
[1732299046324,0.3608,98983.0,98982.0,0.050466]
[1732299046533,0.3608,98983.0,98982.0,0.890466]
[1732299047021,0.3608,98983.0,98982.0,0.986226]
[1732299047923,0.02016922,98989.0,98988.0,0.050463]
[1732299048231,0.02016922,98989.0,98988.0,0.20148408]
[1732299054027,0.02016922,99005.0,98988.0,0.81490108]
[1732299054230,0.02016922,99005.0,99004.0,0.050455]
[1732299054532,0.02016922,99005.0,99004.0,0.990455]
[1732299055138,0.02016922,99005.0,99004.0,0.94]
[1732299055835,0.38096922,99005.0,99004.0,0.94]
[1732299057131,0.38096922,99005.0,99004.0,0.990455]
[1732299057337,0.38096922,99005.0,99004.0,0.94]
[1732299057729,0.38096922,99005.0,99004.0,0.96980181]
[1732299059038,0.43142322,99005.0,99004.0,0.96980181]
[1732299059239,0.38096922,99005.0,99004.0,0.94]
[1732299060337,0.43142322,99005.0,99004.0,0.94]
[1732299061130,0.38096922,99005.0,99004.0,0.94]
[1732299061732,0.38096922,99005.0,99004.0,0.990455]
[1732299062640,0.38096922,99005.0,99004.0,0.94]
[1732299063137,0.38096922,99005.0,99004.0,0.990455]
[1732299064235,0.38096922,99005.0,99004.0,0.94]
[1732299064449,0.38096922,99005.0,99004.0,0.990455]
[1732299065127,0.02016922,99005.0,99004.0,0.990455]
[1732299065727,0.38096922,99005.0,99004.0,0.990455]
[1732299066036,0.02016922,99005.0,99004.0,0.990455]
[1732299068438,0.3608,99017.0,99016.0,0.050448]
[1732299068738,0.3608,99017.0,99016.0,0.51]
[1732299068940,0.09866001,99027.0,99016.0,0.8708]
[1732299069140,0.09024909,99070.0,99026.0,0.050443]
[1732299069437,0.3608,99072.0,99026.0,0.050443]
[1732299069438,0.01194633,99053.0,99052.0,0.05043]
[1732299069644,0.01194633,99053.0,99052.0,1.40123]
[1732299069842,0.07534633,99071.0,99052.0,1.3508]
[1732299070236,0.07534633,99071.0,99056.0,0.050428]
[1732299070434,0.07534633,99071.0,99052.0,1.3508]
[1732299070637,0.07534633,99071.0,99060.0,0.09770697]
[1732299070832,0.3608,99072.0,99060.0,0.09770697]
[1732299071339,0.3608,99072.0,99061.0,0.050425]
[1732299071540,0.3608,99072.0,99060.0,0.13543254]
[1732299071738,0.3608,99072.0,99062.0,0.050425]
[1732299071949,0.3608,99072.0,99062.0,0.09]
[1732299072330,0.3608,99072.0,99062.0,0.140425]
[1732299073142,0.3608,99072.0,99062.0,0.09]
[1732299073933,0.3608,99072.0,99071.0,0.05042]
[1732299074241,0.3608,99072.0,99071.0,0.43048712]
[1732299074734,0.36231448,99084.0,99072.0,0.05042]
[1732299074935,0.36231448,99084.0,99080.0,0.050416]
[1732299075337,0.02014981,99081.0,99080.0,0.050416]
[1732299076241,0.02014981,99081.0,99080.0,0.08867319]
[1732299076447,0.02014981,99081.0,99080.0,0.11867319]
[1732299077347,0.02014981,99081.0,99080.0,0.11871457]
[1732299078444,0.02014981,99081.0,99080.0,0.06829857]
[1732299078645,0.02014981,99081.0,99080.0,0.11871457]
[1732299078949,0.02014981,99081.0,99080.0,0.47951457]
[1732299082841,0.1,99100.0,99080.0,0.47951457]
[1732299082842,0.1,99100.0,99096.0,0.050408]
[1732299083037,0.1,99100.0,99096.0,1.21124938]
[1732299085041,0.00151394,99107.0,99106.0,0.050403]
[1732299085346,0.01495659,99107.0,99106.0,0.93885003]
[1732299085537,0.01495659,99107.0,99106.0,0.98925303]
[1732299086747,0.01495659,99107.0,99106.0,0.93885003]
[1732299086957,0.01344265,99107.0,99106.0,0.93885003]
[1732299088340,0.01344265,99107.0,99106.0,0.97648174]
[1732299088541,0.03482255,99107.0,99106.0,0.97648174]
[1732299088946,0.01344265,99107.0,99106.0,0.97648174]
[1732299089957,0.03463594,99107.0,99106.0,0.97648174]
[1732299092353,0.03463594,99107.0,99106.0,1.02688474]
[1732299093152,0.03463594,99107.0,99106.0,0.97648174]
[1732299093755,0.03444525,99107.0,99106.0,0.76498274]
[1732299094644,0.03444525,99107.0,99106.0,0.81538574]
[1732299095258,0.04073985,99107.0,99106.0,0.76498274]
[1732299096752,0.04073985,99107.0,99097.0,0.09770697]
[1732299096753,0.04073985,99107.0,99096.0,0.3608]
[1732299096955,0.09024909,99103.0,99097.0,0.36770697]
[1732299097255,0.09114485,99102.0,99097.0,0.27]
[1732299097453,0.08981763,99098.0,99097.0,0.27]
[1732299097759,0.04040661,99098.0,99097.0,0.27]
[1732299098955,0.04040661,99098.0,99097.0,0.6308]
[1732299099655,0.13053269,99098.0,99097.0,0.681207]
[1732299099857,0.04040661,99098.0,99097.0,0.681207]
[1732299100449,0.04040661,99098.0,99097.0,0.6308]
[1732299101254,0.0397457,99098.0,99097.0,0.6308]
[1732299101861,0.03345096,99098.0,99097.0,0.6308]
[1732299103765,0.03345096,99098.0,99097.0,0.27]
[1732299105061,0.05359404,99098.0,99097.0,0.27]
[1732299105449,0.17269485,99098.0,99097.0,0.27]
[1732299105652,0.05228717,99098.0,99097.0,0.27]
[1732299105860,0.10269417,99098.0,99097.0,0.27]
[1732299106069,0.05228717,99098.0,99097.0,0.27]
[1732299108760,0.05177804,99098.0,99097.0,0.27]
[1732299109263,0.46298504,99098.0,99097.0,0.01820288]
[1732299109476,0.71529804,99098.0,99086.0,0.00151381]
[1732299109662,0.411212,99087.0,99086.0,0.00151381]
[1732299109863,0.48795496,99087.0,99058.0,0.050427]
[1732299110064,0.3608,99065.0,99060.0,0.09770697]
[1732299110256,0.3608,99065.0,99058.0,0.01]
[1732299110761,0.3608,99065.0,99059.0,0.050427]
[1732299110964,0.3608,99065.0,99058.0,0.060427]
[1732299111171,0.3608,99065.0,99060.0,0.050426]
[1732299111366,0.3608,99065.0,99058.0,0.01]
[1732299111554,0.3608,99065.0,99061.0,0.050425]
[1732299112160,0.3608,99065.0,99058.0,0.01]
[1732299112359,0.3608,99065.0,99060.0,0.050426]
[1732299112564,0.3608,99065.0,99058.0,0.01]
[1732299113172,0.0627,99070.0,99058.0,0.01]
[1732299113469,0.0627,99070.0,99060.0,0.09770697]
[1732299113676,0.0903822,99083.0,99076.0,0.050417]
[1732299113964,0.00151431,99085.0,99076.0,0.39]
[1732299114373,0.02014377,99077.0,99076.0,0.39]
[1732299114763,0.00151431,99085.0,99079.0,0.050416]
[1732299114968,0.00151431,99085.0,99076.0,0.39092]
[1732299115161,0.00151431,99085.0,99076.0,0.39]
[1732299115562,0.02014377,99080.0,99076.0,0.39]
[1732299115759,0.02014377,99080.0,99079.0,0.050416]
[1732299115967,0.02014377,99080.0,99079.0,0.411216]
[1732299116663,0.02014377,99080.0,99079.0,0.3608]
[1732299116979,0.02014377,99080.0,99078.0,0.09552]
[1732299117476,0.02014377,99080.0,99079.0,0.050416]
[1732299118272,0.02014377,99080.0,99078.0,0.09552]
[1732299118673,0.02014377,99080.0,99076.0,0.42813545]
[1732299118878,0.02014377,99080.0,99076.0,0.42721545]
[1732299119375,0.07055977,99080.0,99076.0,0.39]
[1732299119878,0.02014377,99080.0,99076.0,0.39]
[1732299120576,0.050417,99079.0,99076.0,0.39]
[1732299120778,0.02014377,99080.0,99076.0,0.39]
[1732299123274,0.02014377,99080.0,99076.0,0.440418]
[1732299123972,0.02014377,99080.0,99076.0,0.39]
[1732299124175,0.02014377,99080.0,99079.0,0.050416]
[1732299124774,0.02014377,99080.0,99076.0,0.39]
[1732299125584,0.02014377,99080.0,99079.0,0.050416]
[1732299126583,0.02014377,99080.0,99078.0,0.050417]
[1732299126776,0.02014377,99080.0,99076.0,0.39]
[1732299127479,0.02014377,99080.0,99072.0,0.03788319]
[1732299127684,0.02014377,99080.0,99061.0,0.09552]
[1732299127685,0.02014377,99080.0,99075.0,0.21]
[1732299128477,0.3608,99076.0,99075.0,0.260418]
[1732299129477,0.3608,99076.0,99075.0,0.21]
[1732299130383,0.3608,99076.0,99075.0,0.260418]
[1732299130777,0.3608,99076.0,99075.0,0.21]
[1732299132275,0.411218,99076.0,99075.0,0.21]
[1732299132883,0.3608,99076.0,99075.0,0.21]
[1732299133792,0.3608,99076.0,99075.0,0.260418]
[1732299135086,0.3608,99076.0,99075.0,0.21]
[1732299135284,0.411218,99076.0,99075.0,0.21]
[1732299135883,0.3608,99076.0,99075.0,0.21]
[1732299136779,0.411218,99076.0,99075.0,0.21]
[1732299136984,0.3608,99076.0,99065.0,0.0304]
[1732299137187,0.3608,99066.0,99065.0,0.090823]
[1732299137385,0.411223,99066.0,99065.0,0.01]
[1732299138290,0.3608,99066.0,99065.0,0.060423]
[1732299139689,0.3608,99066.0,99065.0,0.01]
[1732299139896,0.411223,99066.0,99065.0,0.01]
[1732299140688,0.05043,99052.0,99044.0,0.050434]
[1732299140895,0.41123,99052.0,99040.0,0.0319]
[1732299141096,0.3608,99052.0,99046.0,0.03770311]
[1732299141498,0.3608,99066.0,99051.0,0.15151426]
[1732299141688,0.3608,99066.0,99065.0,0.050423]
[1732299141882,0.3608,99066.0,99065.0,0.470423]
[1732299142094,0.3608,99066.0,99065.0,0.42]
[1732299142590,0.38095126,99066.0,99041.0,0.050435]
[1732299142792,0.38095126,99066.0,99040.0,0.12960697]
[1732299142793,0.38095126,99066.0,99051.0,0.64151426]
[1732299142992,0.43137426,99066.0,99057.0,0.050427]
[1732299143194,0.43137426,99066.0,99051.0,0.64151426]
[1732299143195,0.3608,99058.0,99051.0,0.64151426]
[1732299143488,0.3608,99058.0,99057.0,0.050428]
[1732299143791,0.3608,99058.0,99051.0,0.64151426]
[1732299143986,0.3608,99058.0,99051.0,0.64243426]
[1732299144183,0.3608,99058.0,99056.0,0.050428]
[1732299144786,0.3608,99058.0,99051.0,0.64151426]
[1732299144996,0.3608,99058.0,99054.0,0.050429]
[1732299145499,0.02014377,99080.0,99055.0,0.45426378]
[1732299145789,0.02014376,99096.0,99090.0,0.050411]
[1732299145989,0.03394376,99104.0,99092.0,0.3608]
[1732299146196,0.0314,99107.0,99092.0,0.3608]
[1732299146197,0.02015128,99107.0,99094.0,0.09770697]
[1732299146393,0.02015128,99107.0,99101.0,0.050405]
[1732299146587,0.02015128,99107.0,99102.0,0.0313]
[1732299147488,0.02015128,99107.0,99102.0,0.081705]
[1732299147683,0.02015128,99107.0,99102.0,0.0313]
[1732299149484,0.02015128,99107.0,99106.0,0.050403]
[1732299150193,0.02015128,99107.0,99106.0,0.340403]
[1732299151196,0.00011492,99118.0,99117.0,0.050397]
[1732299151785,0.00011492,99118.0,99117.0,0.270397]
[1732299153892,0.00011492,99118.0,99115.0,0.0311]
[1732299154096,0.00011492,99118.0,99115.0,0.06913872]
[1732299154591,0.00011492,99118.0,99115.0,0.0311]
[1732299155594,0.00011492,99118.0,99115.0,0.0511]
[1732299157994,0.3608,99116.0,99115.0,0.0511]
[1732299160809,0.3608,99116.0,99094.0,0.0954]
[1732299161107,0.0309,99115.0,99102.0,0.4021]
[1732299161296,0.0309,99115.0,99103.0,0.050404]
[1732299161501,0.050401,99111.0,99102.0,0.40302]
[1732299161699,0.050401,99111.0,99102.0,0.452505]
[1732299162598,0.0309,99115.0,99102.0,0.4021]
[1732299162799,0.081298,99115.0,99107.0,0.050402]
[1732299163005,0.0309,99115.0,99102.0,0.40302]
[1732299163204,0.0309,99115.0,99107.0,0.050402]
[1732299164005,0.0309,99115.0,99102.0,0.453425]
[1732299164304,0.0309,99115.0,99102.0,0.452504]
[1732299164504,0.0504,99111.0,99102.0,0.452504]
[1732299164700,0.081298,99115.0,99103.0,0.050404]
[1732299164903,0.0309,99115.0,99103.0,0.050404]
[1732299165101,0.0504,99111.0,99102.0,0.40302]
[1732299165300,0.0309,99115.0,99103.0,0.050404]
[1732299165705,0.0309,99115.0,99102.0,0.40302]
[1732299165910,0.050401,99110.0,99102.0,0.4021]
[1732299166097,0.050399,99114.0,99102.0,0.452504]
[1732299166304,0.050399,99114.0,99103.0,0.050404]
[1732299166503,0.050399,99114.0,99104.0,0.050403]
[1732299166802,0.050399,99114.0,99105.0,0.050403]
[1732299167609,0.050399,99114.0,99106.0,0.050403]
[1732299168009,0.050399,99114.0,99107.0,0.050402]
[1732299169513,0.0309,99115.0,99109.0,0.050401]
[1732299170012,0.0309,99115.0,99111.0,0.0504]
[1732299170207,0.0309,99115.0,99102.0,0.3921]
[1732299170401,0.02014215,99112.0,99108.0,0.050401]
[1732299170613,0.02014215,99112.0,99102.0,0.5931]
[1732299170810,0.02014215,99112.0,99111.0,0.0504]
[1732299173910,0.02014215,99112.0,99107.0,0.050402]
[1732299174115,0.02014215,99112.0,99102.0,0.59306]
[1732299174413,0.02014215,99112.0,99102.0,0.5921]
[1732299175011,0.02014215,99112.0,99102.0,0.62918096]
[1732299176707,0.02014215,99112.0,99103.0,0.050404]
[1732299177012,0.02014215,99112.0,99106.0,0.050402]
[1732299177311,0.02014215,99112.0,99102.0,0.63010096]
[1732299177511,0.02014215,99112.0,99106.0,0.050402]
[1732299177813,0.02014215,99112.0,99102.0,0.63010096]
[1732299178019,0.02014215,99112.0,99102.0,0.5921]
[1732299178410,0.02014215,99112.0,99102.0,0.642505]
[1732299179012,0.02014215,99112.0,99103.0,0.050404]
[1732299179206,0.02014215,99112.0,99106.0,0.050403]
[1732299179516,0.02014215,99112.0,99106.0,0.050402]
[1732299179713,0.02014215,99112.0,99102.0,0.59302]
[1732299180011,0.02014215,99112.0,99104.0,0.050403]
[1732299180212,0.02014215,99112.0,99102.0,0.5931]
[1732299180411,0.02014215,99112.0,99106.0,0.050402]
[1732299180618,0.02014215,99112.0,99103.0,0.050404]
[1732299180913,0.02014215,99112.0,99104.0,0.050403]
[1732299181121,0.02014215,99112.0,99102.0,0.59306]
[1732299181315,0.02014215,99112.0,99106.0,0.050402]
[1732299181507,0.02014215,99112.0,99108.0,0.050401]
[1732299181713,0.02014215,99112.0,99102.0,0.59302]
[1732299182015,0.02014215,99112.0,99109.0,0.050401]
[1732299182615,0.02014215,99112.0,99102.0,0.5921]
[1732299183018,0.02014215,99112.0,99106.0,0.050402]
[1732299183716,0.02014215,99112.0,99102.0,0.5921]
[1732299184020,0.02014215,99112.0,99103.0,0.050404]
[1732299184224,0.02014215,99112.0,99108.0,0.050401]
[1732299184524,0.02014215,99112.0,99102.0,0.5921]
[1732299185110,0.02014215,99112.0,99111.0,0.0504]
[1732299187719,0.02014215,99112.0,99111.0,0.08786944]
[1732299191622,0.02014215,99112.0,99111.0,0.03746944]
[1732299191823,0.02014215,99112.0,99104.0,0.09528]